fUSD/lending_fUSD_20240216
["ID","MTS","AMOUNT","RATE_DAILY","PERIOD"]
[314188018,1708054252386,-200.0,0.00041212,7]
[314188020,1708054252398,-277.93,0.00041218,2]
[314188022,1708054252408,-151.0,0.00041229,7]
[314188024,1708054252417,-162.14051739,0.00041255,30]
[314188026,1708054252426,-500.0,0.00041264,7]
[314188028,1708054252437,-206.0,0.00041268,10]
[314188030,1708054252447,-500.0,0.00041268,30]
[314188032,1708054252456,-500.0,0.00041268,30]
[314188034,1708054252467,-500.0,0.00041268,30]
[314188036,1708054252476,-500.0,0.00041268,30]
[314188038,1708054252486,-500.0,0.00041268,30]
[314188040,1708054252496,-500.0,0.00041268,30]
[314188042,1708054252505,-500.0,0.00041268,30]
[314188044,1708054252514,-151.0,0.00041268,14]
[314188046,1708054252524,-1367.93,0.00041268,30]
[314188048,1708054252533,-682.03,0.00041268,30]
[314188050,1708054252543,-353.367198,0.00041268,14]
[314188052,1708054252553,-151.0,0.00041268,14]
[314188054,1708054252562,-353.367198,0.00041268,14]
[314188056,1708054252571,-500.0,0.00041268,30]
[314188058,1708054252580,-151.0,0.00041268,14]
[314188060,1708054252590,-151.0,0.00041268,14]
[314188062,1708054252599,-500.0,0.00041268,30]
[314188064,1708054252608,-500.0,0.00041268,30]
[314188066,1708054252618,-1123.89,0.00041268,30]
[314188068,1708054252627,-500.0,0.00041268,30]
[314188070,1708054252637,-5694.96,0.00041268,30]
[314188072,1708054252647,-604.94,0.00041268,30]
[314188074,1708054252656,-500.0,0.00041268,30]
[314188076,1708054252666,-6295.14,0.00041268,30]
[314188079,1708054252675,-500.0,0.00041268,30]
[314188081,1708054252685,-268.71014069,0.00041268,30]
[314188083,1708054252694,-965.53,0.00041268,30]
[314188085,1708054252704,-500.0,0.00041268,30]
[314188087,1708054252713,-151.0,0.00041268,14]
[314188089,1708054252723,-577.58821737,0.00041268,30]
[314188091,1708054252732,-151.0,0.00041281,7]
[314188093,1708054252741,-200.0,0.000413,15]
[314188095,1708054252751,-600.0,0.00041302,30]
[314188097,1708054252761,-1845.97,0.00041302,30]
[314188099,1708054252771,-1500.0,0.00041321,2]
[314188101,1708054252780,-151.0,0.00041366,7]
[314188103,1708054252790,-500.0,0.00041369,30]
[314188105,1708054252799,-540.8081922,0.00041369,30]
[314188107,1708054252809,-500.0,0.00041369,30]
[314188109,1708054252818,-500.0,0.00041369,30]
[314188111,1708054252829,-500.0,0.00041369,30]
[314188113,1708054252838,-1263.37,0.00041369,30]
[314188116,1708054252852,-513.32,0.00041369,30]
[314188118,1708054252862,-552.52,0.00041369,30]
[314188120,1708054252871,-3594.75,0.00041369,5]
[314188122,1708054252881,-1646.97849922,0.00041375,2]
[314188123,1708054252890,-500.0,0.00041375,7]
[314188125,1708054252900,-5664.52389186,0.00041379,2]
[314188127,1708054252910,-263.96651938,0.00041379,2]
[314188129,1708054252919,-716.92293993,0.00041379,2]
[314188132,1708054252930,-937.73490476,0.00041379,2]
[314188133,1708054252940,-2385.12,0.000414,7]
[314188136,1708054252950,-2318.47315306,0.00041414,5]
[314188138,1708054252959,-151.0,0.00041418,7]
[314188140,1708054252969,-150.0,0.0004142,2]
[314188142,1708054252979,-3030.93058605,0.00041429,2]
[314188144,1708054252989,-597.0,0.00041439,30]
[314188146,1708054252999,-455.0,0.00041439,30]
[314188148,1708054253008,-234.17534779,0.00041443,2]
[314188150,1708054253018,-150.0,0.00041449,2]
[314188152,1708054253026,-150.0,0.00041455,2]
[314188153,1708054253036,-572.0,0.00041463,7]
[314188155,1708054253045,-342.0,0.00041463,7]
[314188158,1708054253055,-400.0,0.00041463,7]
[314188160,1708054253066,-150.0,0.00041464,2]
[314188162,1708054253076,-162.14051739,0.00041473,30]
[314188164,1708054253085,-500.0,0.00041487,7]
[314188166,1708054253095,-153.33897774,0.0004149,7]
[314188168,1708054253104,-8406.12419107,0.00041494,15]
[314188170,1708054253114,-151.021624,0.00041498,26]
[314188172,1708054253123,-3336.05406648,0.000415,50]
[314188178,1708054253189,-500.0,0.00038802,7]
[314188179,1708054253198,-183.85616051,0.00039898,7]
[314188180,1708054253210,-316.14383949,0.00039898,7]
[314188181,1708054253219,-108.37529261,0.00040172,7]
[314188182,1708054253236,-391.62470739,0.00040172,7]
[314188184,1708054253247,-500.0,0.00040446,7]
[314188186,1708054253256,-36.6483319,0.0004072,7]
[314188189,1708054253269,-463.3516681,0.0004072,7]
[314188191,1708054253279,-500.0,0.00040994,7]
[314188193,1708054253289,-500.0,0.00041268,30]
[314188195,1708054253301,-20.70019193,0.000415,50]
[314188197,1708054253313,-991.93470308,0.000415,50]
[314188202,1708054253349,-464.22122074,0.00039395,2]
[314188204,1708054253360,-300.25019249,0.00039395,2]
[314188208,1708054253386,-569.42022458,0.00038356,7]
[314188210,1708054253399,-572.65369902,0.00039395,2]
[314188212,1708054253408,-549.07813646,0.000415,50]
[314188214,1708054253420,-568.52842727,0.000415,50]
[314188216,1708054253432,-2826.40596331,0.000415,50]
[314188219,1708054253448,-1319.71924653,0.000415,50]
[314188221,1708054253457,-522.20524101,0.000415,2]
[314188223,1708054253467,-151.0,0.00041503,7]
[314188225,1708054253478,-428.08354575,0.00041542,30]
[314188227,1708054253489,-500.0,0.00041542,30]
[314188229,1708054253498,-500.0,0.00041542,30]
[314188231,1708054253508,-500.0,0.00041542,30]
[314188233,1708054253518,-500.0,0.00041542,30]
[314188235,1708054253527,-388.38019911,0.00041542,30]
[314188237,1708054253540,-111.61980089,0.00041542,30]
[314188239,1708054253548,-169.96651758,0.00041542,30]
[314188242,1708054253564,-330.03348242,0.00041542,30]
[314188244,1708054253574,-1367.93,0.00041542,30]
[314188246,1708054253583,-682.03,0.00041542,30]
[314188248,1708054253593,-500.0,0.00041542,30]
[314188250,1708054253602,-500.0,0.00041542,30]
[314188252,1708054253611,-500.0,0.00041542,30]
[314188254,1708054253620,-605.58,0.00041542,30]
[314188256,1708054253630,-1123.89,0.00041542,30]
[314188258,1708054253639,-500.0,0.00041542,30]
[314188260,1708054253648,-5694.96,0.00041542,30]
[314188262,1708054253657,-604.94,0.00041542,30]
[314188264,1708054253666,-500.0,0.00041542,30]
[314188266,1708054253676,-6295.14,0.00041542,30]
[314188268,1708054253685,-500.0,0.00041542,30]
[314188270,1708054253694,-965.53,0.00041542,30]
[314188272,1708054253703,-500.0,0.00041542,30]
[314188274,1708054253713,-360.31832813,0.00041542,30]
[314188276,1708054253722,-938.19572758,0.00041543,10]
[314188278,1708054253731,-150.0,0.00041548,2]
[314188280,1708054253740,-151.0,0.00041555,7]
[314188282,1708054253750,-6883.49994392,0.00041569,2]
[314188284,1708054253759,-151.0,0.00041572,14]
[314188286,1708054253769,-151.585135,0.00041572,14]
[314188288,1708054253778,-6001.6693809,0.00041572,2]
[314188290,1708054253788,-2175.2956589,0.00041572,2]
[314188292,1708054253797,-84951.028425,0.00041572,2]
[314188294,1708054253806,-151.0,0.00041572,7]
[314188296,1708054253816,-193.441806,0.00041572,14]
[314188298,1708054253825,-600.0,0.00041576,30]
[314188300,1708054253834,-1845.97,0.00041576,30]
[314188302,1708054253844,-200.0,0.0004159,7]
[314188304,1708054253853,-200.0,0.0004159,7]
[314188306,1708054253862,-200.0,0.0004159,7]
[314188308,1708054253871,-200.0,0.0004159,7]
[314188310,1708054253881,-150.0,0.00041592,2]
[314188312,1708054253890,-689.05523496,0.00041597,14]
[314188314,1708054253900,-500.0,0.00041597,14]
[314188316,1708054253909,-500.0,0.00041597,14]
[314188318,1708054253918,-150.0,0.00041597,2]
[314188320,1708054253928,-393.0930504,0.00041597,2]
[314188322,1708054253938,-150.0,0.00041599,3]
[314188324,1708054253947,-150.0,0.00041599,3]
[314188326,1708054253957,-500.0,0.00041599,7]
[314188328,1708054253966,-70850.76379786,0.000416,30]
[314188331,1708054253981,-423889.96272054,0.000416,30]
[314188333,1708054253994,-960.94494096,0.000416,30]
[314188336,1708054254020,-4298.32854064,0.000416,30]
[314188338,1708054254029,-151.0,0.000416,14]
[314188340,1708054254038,-238.13296,0.000416,14]
[314188342,1708054254047,-151.0,0.000416,14]
[314188344,1708054254056,-151.0,0.000416,14]
[314188346,1708054254066,-151.0,0.000416,14]
[314188348,1708054254075,-151.0,0.000416,7]
[314188350,1708054254085,-300.650442,0.000416,14]
[314188352,1708054254095,-151.0,0.000416,14]
[314188354,1708054254104,-151.0,0.000416,14]
[314188356,1708054254113,-151.0,0.000416,2]
[314188373,1708054254278,-151.0,0.000416,2]
[314188374,1708054254289,-151.773562,0.000416,14]
[314188375,1708054254299,-163.517441,0.000416,14]
[314188376,1708054254310,-353.367198,0.000416,14]
[314188378,1708054254320,-251.600479,0.000416,14]
[314188380,1708054254329,-353.367198,0.000416,14]
[314188382,1708054254344,-151.0,0.000416,14]
[314188384,1708054254354,-151.0,0.000416,14]
[314188386,1708054254364,-151.0,0.000416,14]
[314188388,1708054254374,-151.0,0.000416,14]
[314188390,1708054254385,-151.0,0.000416,14]
[314188393,1708054254399,-151.0,0.000416,14]
[314188395,1708054254410,-162.363532,0.000416,14]
[314188397,1708054254420,-162.363532,0.000416,14]
[314188399,1708054254430,-151.0,0.000416,14]
[314188401,1708054254440,-35463.02775165,0.00041612,3]
[314188403,1708054254450,-1000.91861138,0.00041612,3]
[314188405,1708054254459,-150.0,0.00041618,2]
[314188407,1708054254470,-302.77569256,0.0004162,2]
[314188409,1708054254480,-200.0,0.00041624,7]
[314188411,1708054254490,-160.0,0.00041639,3]
[314188413,1708054254500,-151.0,0.0004164,7]
[314188415,1708054254510,-329.9390517,0.00041643,30]
[314188417,1708054254520,-1041.92,0.00041643,7]
[314188419,1708054254529,-500.0,0.00041643,30]
[314188421,1708054254538,-151.0,0.00041643,7]
[314188423,1708054254548,-500.0,0.00041643,30]
[314188425,1708054254559,-500.0,0.00041643,30]
[314188427,1708054254568,-500.0,0.00041643,30]
[314188429,1708054254578,-1263.37,0.00041643,30]
[314188431,1708054254588,-513.32,0.00041643,30]
[314188433,1708054254597,-552.52,0.00041643,30]
[314188435,1708054254606,-500.0,0.00041643,30]
[314188437,1708054254615,-16000.0,0.00041643,3]
[314188439,1708054254624,-160.0,0.00041648,3]
[314188441,1708054254633,-16000.0,0.00041652,3]
[314188443,1708054254643,-153.91701144,0.00041654,30]
[314188445,1708054254653,-150.0,0.0004166,2]
[314188447,1708054254662,-166.66666666,0.00041668,30]
[314188449,1708054254673,-150.0,0.00041669,2]
[314188451,1708054254682,-150.0,0.00041677,2]
[314188453,1708054254692,-150.0,0.00041678,2]
[314188455,1708054254701,-150.0,0.00041678,2]
[314188457,1708054254711,-2840.15507545,0.0004168,3]
[314188459,1708054254720,-92339.39737066,0.0004168,3]
[314188461,1708054254729,-151.0,0.0004168,14]
[314188463,1708054254738,-500.0,0.0004169,7]
[314188465,1708054254748,-500.0,0.0004169,7]
[314188467,1708054254757,-500.0,0.0004169,7]
[314188469,1708054254767,-500.0,0.0004169,7]
[314188471,1708054254776,-500.0,0.0004169,7]
[314188473,1708054254785,-500.0,0.0004169,7]
[314188475,1708054254794,-500.0,0.0004169,7]
[314188477,1708054254803,-500.0,0.0004169,7]
[314188480,1708054254813,-500.0,0.0004169,7]
[314188481,1708054254822,-500.0,0.0004169,7]
[314188483,1708054254831,-500.0,0.0004169,7]
[314188486,1708054254841,-500.0,0.0004169,7]
[314188488,1708054254850,-500.0,0.0004169,7]
[314188489,1708054254859,-500.0,0.0004169,7]
[314188491,1708054254869,-500.0,0.0004169,7]
[314188493,1708054254878,-500.0,0.0004169,7]
[314188496,1708054254888,-500.0,0.0004169,7]
[314188498,1708054254898,-500.0,0.0004169,7]
[314188500,1708054254907,-500.0,0.0004169,7]
[314188502,1708054254917,-500.0,0.0004169,7]
[314188504,1708054254926,-500.0,0.0004169,7]
[314188506,1708054254935,-270.14,0.0004169,7]
[314188507,1708054254944,-500.0,0.0004169,7]
[314188510,1708054254954,-170.24669159,0.0004169,2]
[314188511,1708054254963,-151.0,0.00041692,7]
[314188513,1708054254973,-393.0930504,0.00041697,2]
[314188516,1708054254982,-209.19864569,0.00041699,30]
[314188518,1708054254992,-150.0,0.00041699,2]
[314188520,1708054255003,-401.00068974,0.000417,3]
[314188522,1708054255012,-68240.70764251,0.000417,30]
[314188524,1708054255029,-6234.01940345,0.000417,30]
[314188527,1708054255044,-31735.31850922,0.000417,30]
[314188529,1708054255056,-5287.51751739,0.000417,30]
[314188532,1708054255069,-2110.40344051,0.000417,30]
[314188542,1708054255156,-550.79935004,0.00038356,7]
[314188544,1708054255166,-604.58089464,0.00038356,7]
[314188546,1708054255175,-517.91800051,0.00038356,7]
[314188548,1708054255185,-552.22215249,0.00038836,7]
[314188550,1708054255195,-499.99,0.00039392,2]
[314188552,1708054255205,-429.0,0.00039553,2]
[314188554,1708054255214,-78239.09801395,0.000417,30]
[314188556,1708054255229,-28603.67226685,0.000417,30]
[314188864,1708054654598,-1250.0,0.00025,3]
[314188865,1708054664067,-155.4986,0.00030899,2]
[314188866,1708054670617,-200.0,0.00034244,3]
[314188867,1708054670646,-150.0,0.00034244,3]
[314188868,1708054670675,-150.0,0.00034244,3]
[314188869,1708054670705,-23900.0,0.00034245,2]
[314188870,1708054670733,-161.24,0.00034521,2]
[314188871,1708054682013,250.0,0.00034245,2]
[314188872,1708054706198,1632.88808586,0.00034245,3]
[314188873,1708054722202,1632.88808586,0.00034245,3]
[314188874,1708054742254,1143.0216601,0.00034245,3]
[314188875,1708054760200,1143.0216601,0.00034245,3]
[314188876,1708054784328,1143.0216601,0.00034245,3]
[314188877,1708054800202,1143.0216601,0.00034245,3]
[314188878,1708054823936,1143.0216601,0.00034245,3]
[314188879,1708054843962,1143.0216601,0.00034245,3]
[314188880,1708054867938,1143.0216601,0.00034245,3]
[314188881,1708054883404,15522.62,0.00034245,2]
[314188882,1708054883947,996.42976456,0.00034245,3]
[314188883,1708055160581,161.23,0.00034521,2]
[314188884,1708055189939,342.19,0.00034779,2]
[314188887,1708055282642,155.0,0.00034779,4]
[314188888,1708055302626,294.61731476,0.00034779,4]
[314188889,1708055320642,294.61731476,0.00034779,4]
[314188890,1708055346901,206.23212033,0.00034779,4]
[314188891,1708055366893,155.0,0.00034779,4]
[314188893,1708055390902,155.0,0.00034779,4]
[314188894,1708055408894,155.0,0.00034779,4]
[314188895,1708055426886,155.0,0.00034779,4]
[314188903,1708055432406,-519.80629185,0.00035078,4]
[314188904,1708055432518,-6025.7805639,0.00035078,4]
[314188905,1708055432527,-666.70961453,0.00035079,10]
[314188906,1708055432537,-318.61000472,0.00035079,10]
[314188907,1708055432547,-286.9254443,0.00035079,10]
[314188908,1708055432556,-206.0,0.00035592,2]
[314188909,1708055432566,-1353.52382428,0.00035999,4]
[314188910,1708055432576,-15253.0,0.00036,2]
[314188911,1708055432585,-176686.03077414,0.00036,2]
[314188912,1708055432595,-28370.42220132,0.00036292,2]
[314188913,1708055432605,-600.0,0.00036636,2]
[314188914,1708055432615,-2000.0,0.00036671,2]
[314188915,1708055432626,-11632.64,0.00036706,2]
[314188916,1708055432635,-186.6,0.00036734,2]
[314188917,1708055432644,-174.38,0.00036741,2]
[314188918,1708055432654,-273.56,0.00036748,2]
[314188919,1708055432664,-250.0,0.00036753,2]
[314188920,1708055432673,-250.0,0.00036789,111]
[314188921,1708055432683,-7008.75,0.0003681,2]
[314188922,1708055432692,-250.0,0.00036871,2]
[314188923,1708055432702,-2355.36,0.00036898,2]
[314188925,1708055432711,-342.19,0.00037043,2]
[314188928,1708055432720,-165.62,0.00037209,2]
[314188931,1708055432729,-28370.42220132,0.00037248,2]
[314188933,1708055432739,-500.0,0.00037642,2]
[314188935,1708055432753,-400.0,0.00037662,2]
[314188937,1708055432763,-154.63,0.0003769,2]
[314188938,1708055432776,-499.99,0.0003769,2]
[314188939,1708055432786,-3365.09819923,0.000379,2]
[314188940,1708055432796,-3365.09819918,0.000379,2]
[314188941,1708055432806,-3365.09819918,0.000379,2]
[314188942,1708055432815,-3365.09819918,0.000379,2]
[314188943,1708055432825,-3365.09819918,0.000379,2]
[314188944,1708055432835,-3365.09819918,0.000379,2]
[314188945,1708055432844,-3365.09819918,0.000379,2]
[314188946,1708055432854,-3365.09819918,0.000379,2]
[314188947,1708055432863,-3365.09819918,0.000379,2]
[314188948,1708055432873,-3365.09819918,0.00037944,2]
[314188949,1708055432883,-165.62,0.00037953,2]
[314188950,1708055432893,-155.26580881,0.00038,4]
[314188951,1708055432903,-3365.09819918,0.00038128,2]
[314188952,1708055432912,-1020.16216062,0.00038196,8]
[314188953,1708055432922,-28370.42220132,0.00038205,2]
[314188954,1708055432931,-5000.0,0.00038256,3]
[314188955,1708055432941,-152.0,0.00038276,3]
[314188956,1708055432950,-3630.91,0.00038296,5]
[314188957,1708055432960,-6771.43601707,0.00038296,5]
[314188958,1708055432970,-2496.82336783,0.00038296,5]
[314188959,1708055432979,-1093.17359698,0.00038296,3]
[314188960,1708055432989,-274.53988715,0.00038296,2]
[314188961,1708055432999,-1982.39065096,0.00038296,5]
[314188962,1708055433008,-3365.09819918,0.00038311,2]
[314188963,1708055433018,-180.93252905,0.00038346,2]
[314188964,1708055433028,-525.63768727,0.00038356,7]
[314188965,1708055433038,-475.47857014,0.00038356,7]
[314188966,1708055433047,-500.0,0.00038356,7]
[314188967,1708055433057,-500.0,0.00038356,7]
[314188968,1708055433066,-500.0,0.00038356,7]
[314188969,1708055433075,-500.0,0.00038356,7]
[314188970,1708055433084,-631.40298891,0.00038356,7]
[314188971,1708055433094,-500.0,0.00038356,7]
[314188972,1708055433104,-530.61682229,0.00038356,7]
[314188973,1708055433113,-535.64257057,0.00038356,7]
[314188974,1708055433123,-519.6906646,0.00038356,7]
[314188975,1708055433132,-500.0,0.00038356,7]
[314188976,1708055433142,-556.68136262,0.00038356,7]
[314188977,1708055433151,-529.1455566,0.00038356,7]
[314188978,1708055433161,-500.0,0.00038356,7]
[314188979,1708055433170,-513.98990491,0.00038356,30]
[314188980,1708055433179,-500.0,0.00038356,7]
[314188981,1708055433188,-500.0,0.00038356,7]
[314188982,1708055433198,-500.0,0.00038356,7]
[314188983,1708055433207,-500.0,0.00038356,7]
[314188984,1708055433217,-500.0,0.00038356,7]
[314188985,1708055433227,-500.0,0.00038356,7]
[314188986,1708055433236,-637.82140201,0.00038356,7]
[314188987,1708055433245,-500.0,0.00038356,7]
[314188988,1708055433255,-500.0,0.00038356,7]
[314188989,1708055433264,-500.0,0.00038356,7]
[314188990,1708055433274,-500.0,0.00038356,7]
[314188991,1708055433283,-500.0,0.00038356,2]
[314188992,1708055433293,-500.0,0.00038356,7]
[314188993,1708055433302,-552.2786424,0.00038356,7]
[314188994,1708055433311,-527.33074084,0.00038356,7]
[314188995,1708055433322,-500.0,0.00038356,7]
[314188996,1708055433332,-500.0,0.00038356,7]
[314188997,1708055433341,-548.36573478,0.00038356,7]
[314188998,1708055433351,-500.0,0.00038356,7]
[314188999,1708055433360,-500.0,0.00038356,7]
[314189000,1708055433369,-560.52025808,0.00038356,7]
[314189001,1708055433378,-510.51715915,0.00038356,7]
[314189002,1708055433388,-1000.0,0.00038356,120]
[314189003,1708055433397,-500.0,0.00038356,7]
[314189004,1708055433406,-469.15522282,0.00038356,7]
[314189005,1708055433415,-398.63178718,0.00038356,7]
[314189006,1708055433425,-500.0,0.00038356,7]
[314189007,1708055433434,-500.0,0.00038356,7]
[314189008,1708055433443,-500.0,0.00038356,7]
[314189009,1708055433454,-526.94165787,0.00038356,7]
[314189010,1708055433463,-529.97683252,0.00038356,7]
[314189011,1708055433473,-441.82448347,0.00038356,7]
[314189012,1708055433482,-500.0,0.00038356,7]
[314189013,1708055433491,-500.0,0.00038356,7]
[314189014,1708055433500,-500.0,0.00038356,7]
[314189015,1708055433510,-1000.0,0.00038356,7]
[314189016,1708055433521,-500.0,0.00038356,7]
[314189017,1708055433530,-542.54081502,0.00038356,7]
[314189018,1708055433539,-500.0,0.00038356,7]
[314189019,1708055433549,-500.0,0.00038356,7]
[314189020,1708055433559,-500.0,0.00038356,7]
[314189021,1708055433568,-503.26336138,0.00038356,7]
[314189022,1708055433578,-500.0,0.00038356,7]
[314189023,1708055433587,-500.0,0.00038356,7]
[314189024,1708055433596,-500.0,0.00038356,7]
[314189025,1708055433606,-500.0,0.00038356,7]
[314189026,1708055433615,-500.0,0.00038356,7]
[314189027,1708055433624,-500.0,0.00038356,7]
[314189028,1708055433634,-550.43325749,0.00038356,7]
[314189029,1708055433643,-500.0,0.00038356,7]
[314189030,1708055433653,-500.0,0.00038356,7]
[314189031,1708055433663,-500.0,0.00038356,7]
[314189032,1708055433672,-500.0,0.00038356,7]
[314189033,1708055433682,-500.0,0.00038356,7]
[314189034,1708055433691,-500.0,0.00038356,7]
[314189035,1708055433700,-500.0,0.00038356,7]
[314189036,1708055433710,-500.0,0.00038356,7]
[314189037,1708055433719,-543.2035612,0.00038356,7]
[314189038,1708055433728,-500.0,0.00038356,7]
[314189039,1708055433738,-500.0,0.00038356,7]
[314189040,1708055433748,-500.0,0.00038356,7]
[314189041,1708055433761,-500.0,0.00038356,7]
[314189042,1708055433770,-545.61226031,0.00038356,7]
[314189043,1708055433782,-500.0,0.00038356,7]
[314189044,1708055433791,-1849.31,0.00038356,7]
[314189045,1708055433801,-500.0,0.00038356,7]
[314189046,1708055433811,-500.0,0.00038356,7]
[314189047,1708055433820,-500.0,0.00038356,7]
[314189048,1708055433830,-500.0,0.00038356,7]
[314189049,1708055433839,-500.0,0.00038356,7]
[314189050,1708055433848,-500.0,0.00038356,7]
[314189051,1708055433857,-500.0,0.00038356,7]
[314189052,1708055433866,-554.37683049,0.00038356,7]
[314189053,1708055433875,-500.0,0.00038356,7]
[314189054,1708055433884,-500.0,0.00038356,7]
[314189055,1708055433893,-500.0,0.00038356,7]
[314189056,1708055433902,-551.59861887,0.00038356,7]
[314189057,1708055433912,-500.0,0.00038356,7]
[314189058,1708055433920,-500.0,0.00038356,7]
[314189059,1708055433929,-521.71629664,0.00038356,7]
[314189060,1708055433938,-500.0,0.00038356,7]
[314189061,1708055433948,-500.0,0.00038356,7]
[314189062,1708055433957,-500.0,0.00038356,7]
[314189063,1708055433966,-500.0,0.00038356,7]
[314189064,1708055433976,-500.0,0.00038356,7]
[314189065,1708055433984,-500.0,0.00038356,7]
[314189066,1708055433993,-500.0,0.00038356,7]
[314189067,1708055434002,-627.27639475,0.00038356,7]
[314189068,1708055434013,-508.6401343,0.00038356,7]
[314189069,1708055434022,-505.56771103,0.00038356,7]
[314189070,1708055434031,-291.25929066,0.00038356,7]
[314189071,1708055434041,-641.38152255,0.00038356,7]
[314189072,1708055434050,-440.98164127,0.00038356,7]
[314189073,1708055434060,-500.0,0.00038356,7]
[314189074,1708055434069,-533.55154395,0.00038356,7]
[314189075,1708055434079,-500.0,0.00038356,7]
[314189076,1708055434088,-158.78630532,0.00038356,7]
[314189077,1708055434098,-500.0,0.00038356,7]
[314189078,1708055434107,-509.99319041,0.00038356,7]
[314189079,1708055434115,-500.0,0.00038356,7]
[314189080,1708055434125,-508.21400248,0.00038356,7]
[314189081,1708055434134,-503.44082779,0.00038356,7]
[314189082,1708055434143,-524.21783224,0.00038356,7]
[314189083,1708055434152,-500.0,0.00038356,7]
[314189084,1708055434161,-580.0,0.00038356,7]
[314189085,1708055434170,-509.20021295,0.00038356,7]
[314189086,1708055434179,-532.85186268,0.00038356,7]
[314189087,1708055434188,-500.0,0.00038356,7]
[314189088,1708055434198,-524.9961908,0.00038356,7]
[314189089,1708055434207,-511.07129399,0.00038356,7]
[314189090,1708055434216,-541.20577648,0.00038356,7]
[314189091,1708055434388,-505.51361521,0.00038356,7]
[314189092,1708055434398,-595.5,0.00038356,7]
[314189093,1708055434407,-500.0,0.00038356,7]
[314189094,1708055434416,-563.33826178,0.00038356,7]
[314189095,1708055434426,-500.0,0.00038356,7]
[314189096,1708055434435,-500.0,0.00038356,7]
[314189097,1708055434444,-515.10772441,0.00038356,7]
[314189098,1708055434454,-500.0,0.00038356,7]
[314189099,1708055434463,-505.66612002,0.00038356,7]
[314189100,1708055434472,-508.72271705,0.00038356,7]
[314189101,1708055434481,-522.45482126,0.00038356,7]
[314189102,1708055434490,-511.04083509,0.00038356,7]
[314189103,1708055434499,-500.0,0.00038356,7]
[314189104,1708055434508,-596.94315113,0.00038356,7]
[314189105,1708055434518,-500.0,0.00038356,7]
[314189106,1708055434528,-521.60567241,0.00038356,7]
[314189107,1708055434537,-506.65580943,0.00038356,7]
[314189108,1708055434546,-510.22057726,0.00038356,7]
[314189109,1708055434555,-500.0,0.00038356,7]
[314189110,1708055434569,-504.51793544,0.00038356,7]
[314189111,1708055434580,-505.35807743,0.00038356,7]
[314189112,1708055434589,-514.12064312,0.00038356,7]
[314189113,1708055434599,-514.29658376,0.00038356,7]
[314189114,1708055434608,-552.31096926,0.00038356,7]
[314189115,1708055434618,-511.90227495,0.00038356,7]
[314189116,1708055434627,-523.3386894,0.00038356,7]
[314189117,1708055434636,-500.0,0.00038356,7]
[314189118,1708055434646,-515.038858,0.00038356,7]
[314189119,1708055434655,-537.82034152,0.00038356,7]
[314189120,1708055434664,-545.28770553,0.00038356,7]
[314189121,1708055434674,-518.61499414,0.00038356,7]
[314189122,1708055434683,-500.0,0.00038356,7]
[314189123,1708055434692,-516.46046057,0.00038356,7]
[314189124,1708055434702,-591.85109418,0.00038356,7]
[314189125,1708055434711,-500.0,0.00038356,7]
[314189126,1708055434720,-500.0,0.00038356,7]
[314189127,1708055434729,-500.0,0.00038356,2]
[314189128,1708055434739,-506.82594157,0.00038356,7]
[314189129,1708055434750,-500.0,0.00038356,7]